bitfinex-derivatives/quotes_SOLF0:USTF0_20250626
["timestamp","ask_amount","ask_price","bid_price","bid_amount"]
[1750943292726,2.3912,143.12,143.05,6.51805785]
[1750943292917,9.44697464,143.11,143.05,6.51805785]
[1750943293118,16.43287464,143.1,143.06,6.9871]
[1750943293317,9.44697464,143.09,143.06,6.9871]
[1750943293612,6.9859,143.1,143.06,6.9873]
[1750943293812,51.87326345,143.09,143.06,6.9873]
[1750943294013,9.42706345,143.08,143.06,6.9873]
[1750943294226,42.4462,143.09,143.06,6.9873]
[1750943294427,9.44513546,143.08,143.06,6.9873]
[1750943294720,42.4462,143.09,143.06,6.9873]
[1750943295023,9.43690554,143.08,143.06,6.9873]
[1750943295224,42.4462,143.09,143.06,6.9873]
[1750943295426,9.43349698,143.08,143.06,6.9873]
[1750943295727,42.4462,143.09,143.05,6.9879]
[1750943295928,9.43614031,143.08,143.05,6.9879]
[1750943296126,4.98359859,143.07,143.05,6.9879]
[1750943296323,42.4462,143.09,143.05,6.9879]
[1750943296525,9.4372231,143.08,143.05,6.9879]
[1750943296825,42.4462,143.09,143.05,6.9879]
[1750943296826,4.98413867,143.07,143.05,6.9879]
[1750943297026,42.4462,143.09,143.05,6.9879]
[1750943297227,9.43676854,143.08,143.05,6.9879]
[1750943297423,4.98377625,143.07,143.03,6.51805785]
[1750943297622,42.4462,143.09,143.03,6.51805785]
[1750943297819,9.43663,143.08,143.03,6.51805785]
[1750943298014,42.4462,143.09,143.05,6.9878]
[1750943298226,9.41790371,143.08,143.05,6.9878]
[1750943298425,35.46,143.09,143.05,6.9878]
[1750943298629,16.40388953,143.08,143.05,6.9878]
[1750943298829,6.987,143.08,143.05,6.9878]
[1750943299631,6.9871,143.07,143.04,6.9883]
[1750943300629,6.9868,143.08,143.05,6.988]
[1750943300829,9.40182975,143.07,143.05,6.988]
[1750943301130,23.1368,143.08,143.05,6.988]
[1750943301331,9.40076309,143.07,143.04,6.9883]
[1750943301533,23.1368,143.08,143.04,6.9883]
[1750943301728,9.40130556,143.07,143.02,154.57189589]
[1750943302030,23.1368,143.08,143.05,6.9879]
[1750943302234,4.96260394,143.07,143.05,6.9879]
[1750943302534,16.15,143.08,143.05,6.9879]
[1750943302722,4.96197654,143.07,143.05,6.9879]
[1750943302924,23.1369,143.08,143.05,6.9879]
[1750943303124,4.96197654,143.07,143.02,6.51805785]
[1750943303323,4.96004733,143.06,142.99,6.51805785]
[1750943303528,6.9889,143.04,143.0,6.9901]
[1750943304126,35.42,143.05,142.97,6.51805785]
[1750943304434,14.11374155,143.04,142.95,6.51805785]
[1750943304636,6.9903,143.01,142.97,6.9917]
[1750943304838,35.44,143.0,142.97,6.9917]
[1750943305335,42.4307,143.0,142.97,6.9917]
[1750943305734,35.44,143.0,142.96,6.9923]
[1750943305932,42.4308,143.0,142.96,6.9923]
[1750943306140,35.44,143.0,142.96,6.9923]
[1750943306433,6.9913,142.99,142.95,6.9927]
[1750943306632,35.44,143.0,142.92,2.4295]
[1750943306827,641.4781,143.0,142.89,6.51805785]
[1750943307027,641.4781,143.0,142.88,6.51805785]
[1750943307235,641.4781,143.0,142.86,8.64873651]
[1750943307236,9.36194671,142.99,142.86,6.51805785]
[1750943307724,4.7608,142.98,142.86,6.51805785]
[1750943307929,606.0381,143.0,142.87,41.95805785]
[1750943308132,35.44,142.99,142.95,6.9926]
[1750943308331,35.44,142.99,142.88,6.51805785]
[1750943308734,44.77906421,142.99,142.88,6.51805785]
[1750943308934,44.77906421,142.99,142.89,6.51805785]
[1750943309137,44.77906421,142.99,142.88,6.51805785]
[1750943309337,51.77016421,142.99,142.96,6.9923]
[1750943309536,40.37221495,142.99,142.91,35.44]
[1750943309738,40.37221495,143.02,142.92,4.7573]
[1750943309941,42.4299,143.02,142.92,4.7573]
[1750943310534,35.44,143.02,142.92,4.7573]
[1750943310940,6.9909,143.0,142.97,6.9916]
[1750943311849,6.9902,143.01,142.98,6.9915]
[1750943312542,6.9902,143.01,142.97,6.9917]
[1750943313846,42.4297,143.02,142.98,6.9914]
[1750943314342,35.44,143.02,142.92,4.7573]
[1750943314547,6.9903,143.01,142.97,6.9918]
[1750943314938,35.44,143.02,142.92,4.7573]
[1750943315245,6.9911,142.99,142.95,6.9927]
[1750943315436,35.44,143.02,142.92,4.7573]
[1750943315635,6.9916,142.98,142.94,6.9931]
[1750943315837,42.4316,142.98,142.94,6.9931]
[1750943317550,35.44,142.98,142.91,151.51748738]
[1750943317755,35.44,142.98,142.86,40.2242]
[1750943318054,35.44,142.98,142.86,37.7814]
[1750943318244,35.44,142.98,142.87,2.4428]
[1750943319253,6.9932,142.95,142.91,6.9948]
[1750943320058,35.44,142.98,142.87,2.4428]
[1750943320548,6.9929,142.96,142.92,6.9942]
[1750943321157,6.9929,142.96,142.93,6.9938]
[1750943321843,16.71,142.95,142.93,6.9938]
[1750943322050,23.7031,142.95,142.92,6.9942]
[1750943322446,23.7031,142.95,142.87,2.4428]
[1750943323059,23.7031,142.95,142.92,6.9943]
[1750943324661,6.9936,142.94,142.91,6.9947]
[1750943324858,35.46,142.94,142.87,2.4428]
[1750943325356,35.46,142.94,142.89,6.9956]
[1750943325758,6.9944,142.93,142.89,6.9956]
[1750943326456,6.9944,142.93,142.9,6.9954]
[1750943326656,42.4536,142.94,142.9,6.9954]
[1750943327264,6.994,142.93,142.9,6.9954]
[1750943327655,35.46,142.94,142.89,6.9959]
[1750943328056,35.46,142.94,142.86,37.7814]
[1750943328253,35.46,142.94,142.83,37.7162]
[1750943328458,6.9958,142.9,142.83,37.7162]
[1750943328654,6.9958,142.9,142.85,6.9977]
[1750943328655,35.44,142.9,142.85,6.9977]
[1750943329361,35.44,142.9,142.83,37.7162]
[1750943330367,35.44,142.9,142.88,6.9963]
[1750943330566,35.44,142.9,142.83,37.7162]
[1750943330863,35.44,142.9,142.88,6.9962]
[1750943331166,35.44,142.9,142.83,37.7162]
[1750943331466,35.44,142.9,142.86,6.997]
[1750943331669,6.996,142.89,142.86,6.997]
[1750943332262,42.4356,142.9,142.86,6.997]
[1750943332465,35.44,142.9,142.83,37.7162]
[1750943332864,35.44,142.9,142.83,2.2762]
[1750943333168,6.9964,142.88,142.85,6.9976]
[1750943333365,35.44,142.9,142.85,6.9976]
[1750943333566,35.44,142.9,142.83,2.2762]
[1750943333868,6.9962,142.89,142.85,6.9978]
[1750943334569,42.4356,142.9,142.83,2.2762]
[1750943334769,42.4356,142.9,142.8,40.1992]
[1750943334969,42.4356,142.9,142.81,2.4015]
[1750943335171,42.4356,142.9,142.87,6.9966]
[1750943336169,6.9959,142.89,142.86,6.9972]
[1750943337770,6.9959,142.89,142.85,6.9976]
[1750943338269,6.9959,142.89,142.81,2.4015]
[1750943338270,6.9959,142.89,142.86,6.9973]
[1750943339270,6.9959,142.89,142.85,6.9975]
[1750943339669,35.44,142.9,142.85,6.9975]
[1750943339966,35.44,142.9,142.8,35.44]
[1750943340970,6.9969,142.87,142.84,6.9981]
[1750943341573,6.9966,142.88,142.85,6.9978]
[1750943341875,35.44,142.9,142.8,35.44]
[1750943342175,4.28681077,142.93,142.82,13.9986]
[1750943342364,35.46,142.92,142.83,2.4054]
[1750943343468,6.9961,142.89,142.86,6.9971]
[1750943343776,35.46,142.92,142.83,2.4054]
[1750943344073,6.9955,142.9,142.87,6.9967]
[1750943344269,6.9955,142.9,142.83,2.4054]
[1750943344578,35.46,142.92,142.83,2.4054]
[1750943345073,6.9958,142.9,142.87,6.9968]
[1750943345468,6.9963,142.89,142.86,6.9971]
[1750943346173,6.9957,142.9,142.86,6.9971]
[1750943346367,35.46,142.92,142.83,2.4054]
[1750943346774,35.46,142.92,142.84,35.46]
[1750943346972,35.46,142.92,142.84,49.4567]
[1750943347476,35.46,142.92,142.9,6.9951]
[1750943349674,35.46,142.92,142.84,41.97805785]
[1750943350261,6.996,142.89,142.86,6.9972]
[1750943352068,42.4564,142.88,142.85,6.9976]
[1750943352571,35.46,142.88,142.86,6.9973]
[1750943353164,35.46,142.88,142.87,6.9969]
[1750943353675,35.46,142.88,142.86,6.9971]
[1750943354374,35.46,142.88,142.87,6.9969]
[1750943354567,35.46,142.88,142.81,40.0679]
[1750943354975,35.46,142.88,142.86,6.997]
[1750943355172,4.30304679,142.92,142.81,40.0679]
[1750943355475,35.46,142.93,142.92,6.9944]
[1750943356665,39.76304679,142.93,142.91,6.9947]
[1750943357367,4.30304679,142.92,142.91,6.9947]
[1750943358369,4.30304679,142.92,142.87,35.64]
[1750943358672,17.97,142.91,142.84,2.3186]
[1750943358872,29.26824679,142.91,142.84,2.3186]
[1750943359074,24.9652,142.91,142.84,2.3186]
[1750943359378,24.9652,142.91,142.88,6.9961]
[1750943359873,29.33531097,142.91,142.88,6.9961]
[1750943360080,24.9652,142.91,142.88,6.9961]
[1750943360273,24.9652,142.91,142.89,6.9959]
[1750943360473,17.97,142.91,142.89,6.9959]
[1750943361179,24.965,142.91,142.88,6.9962]
[1750943361370,17.97,142.91,142.84,2.3186]
[1750943361680,17.97,142.91,142.85,6.51805785]
[1750943361866,6.9957,142.9,142.87,6.9966]
[1750943362371,6.9957,142.9,142.86,13.51525785]
[1750943362575,42.636,142.89,142.86,6.51805785]
[1750943362776,42.636,142.89,142.85,6.51805785]
[1750943362977,42.636,142.89,142.85,13.51565785]
[1750943363272,42.636,142.89,142.87,6.51805785]
[1750943363477,6.9964,142.88,142.87,6.51805785]
[1750943363680,6.9964,142.88,142.86,6.51805785]
[1750943363879,35.64,142.89,142.86,6.51805785]
[1750943364084,42.6363,142.89,142.86,6.51805785]
[1750943364386,42.6363,142.89,142.86,13.51535785]
[1750943365179,42.6363,142.89,142.86,6.51805785]
[1750943366283,42.6363,142.89,142.87,6.51805785]
[1750943366475,35.64,142.89,142.87,6.51805785]
[1750943366983,40.00190278,142.89,142.87,6.51805785]
[1750943367189,40.00190278,142.89,142.87,13.51475785]
[1750943367382,40.00190278,142.89,142.87,6.9967]
[1750943367684,40.00190278,142.89,142.85,6.51805785]
[1750943367978,35.64,142.89,142.86,6.997]
[1750943369575,42.636,142.89,142.86,6.997]
[1750943370682,35.64,142.89,142.86,6.997]
[1750943370990,17.97,142.91,142.84,6.51805785]
[1750943371185,17.97,142.91,142.85,8.77405785]
[1750943371381,17.97,142.91,142.9,6.9954]
[1750943372390,17.97,142.91,142.9,13.51345785]
[1750943377190,17.97,142.91,142.9,6.9954]
[1750943377385,17.97,142.91,142.88,6.51805785]
[1750943377784,17.97,142.91,142.9,6.9954]
[1750943391412,17.97,142.91,142.87,6.51805785]
[1750943392011,17.97,142.91,142.9,6.9954]
[1750943395708,17.97,142.91,142.89,6.9957]
[1750943396405,24.9652,142.91,142.89,6.9957]
[1750943396609,17.97,142.91,142.9,6.9954]
[1750943400627,17.97,142.91,142.89,6.9957]
[1750943401115,6.9946,142.92,142.89,6.9957]
[1750943401524,6.9946,142.92,142.9,6.9954]
[1750943402824,20.38,142.91,142.9,6.9954]
[1750943403026,20.38,142.91,142.89,6.9957]
[1750943403225,20.38,142.91,142.87,6.51805785]
[1750943403719,20.38,142.91,142.9,6.9954]
[1750943405724,20.38,142.91,142.88,6.51805785]
[1750943406126,20.38,142.91,142.9,6.9954]
[1750943407426,27.3749,142.91,142.89,6.9958]
[1750943408331,27.3749,142.91,142.86,6.51805785]
[1750943408332,6.9957,142.9,142.86,6.51805785]
[1750943408522,36.0,142.9,142.85,6.51805785]
[1750943409623,42.9956,142.9,142.87,6.9966]
[1750943410627,36.0,142.9,142.88,6.9964]
[1750943412433,42.9955,142.9,142.87,6.9966]
[1750943412731,36.0,142.9,142.85,6.51805785]
[1750943413136,36.0,142.9,142.88,6.9964]
[1750943413332,36.0,142.9,142.85,6.51805785]
[1750943413519,36.0,142.9,142.86,6.51805785]
[1750943413720,36.0,142.9,142.89,6.9959]
[1750943416129,20.38,142.91,142.9,6.9954]
[1750943428838,20.38,142.91,142.88,6.51805785]
[1750943429133,6.9953,142.91,142.88,6.51805785]
[1750943429330,35.84,142.93,142.89,6.9959]
[1750943429530,4.38257501,142.92,142.87,6.51805785]
[1750943429727,4.38257501,142.91,142.87,6.51805785]
[1750943429928,6.9948,142.92,142.89,6.9955]
[1750943430124,4.38257501,142.91,142.87,6.51805785]
[1750943430329,6.9948,142.92,142.9,6.9954]
[1750943430525,4.38318032,142.91,142.9,6.9954]
[1750943431029,35.84,142.93,142.91,6.9947]
[1750943431230,4.38390738,142.92,142.91,6.9947]
[1750943432038,35.84,142.99,142.96,6.9925]
[1750943432238,35.84,142.99,142.92,6.51805785]
[1750943432539,6.9917,142.98,142.96,6.9925]
[1750943432942,6.9921,142.97,142.92,6.51805785]
[1750943433142,35.84,142.99,142.92,6.51805785]
[1750943433843,6.9921,142.97,142.94,6.9932]
[1750943434441,6.9921,142.97,142.95,6.993]
[1750943434634,6.9921,142.97,142.92,6.51805785]
[1750943435139,35.84,142.99,142.92,6.51805785]
[1750943435436,35.84,142.99,142.94,6.51805785]
[1750943436145,35.84,142.99,142.97,6.9916]
[1750943436332,13.65,142.98,142.97,6.9916]
[1750943439842,13.65,142.98,142.93,6.51805785]
[1750943440243,13.65,142.98,142.92,42.35805785]
[1750943440945,13.65,142.98,142.94,6.9932]
[1750943441534,6.9923,142.97,142.94,6.9932]
[1750943441843,13.65,142.98,142.9,6.51805785]
[1750943442047,13.65,142.98,142.89,35.82]
[1750943442348,2.4478,142.97,142.89,6.9957]
[1750943442645,2.4478,142.97,142.87,6.51805785]
[1750943442846,4.6495,142.96,142.87,6.51805785]
[1750943443043,6.9943,142.93,142.9,6.9954]
[1750943443648,35.82,142.95,142.91,6.9949]
[1750943443848,6.9937,142.94,142.91,6.9949]
[1750943444546,47.10279612,142.95,142.92,6.9941]
[1750943444848,42.8131,142.95,142.92,6.9941]
[1750943445249,35.82,142.95,142.87,6.51805785]
[1750943445446,35.82,142.96,142.88,6.51805785]
[1750943445744,35.82,142.96,142.89,13.72765785]
[1750943445951,35.82,142.96,142.94,6.9932]
[1750943446149,35.82,142.96,142.89,49.50765785]
[1750943446650,35.82,142.96,142.95,6.993]
[1750943447953,20.6417,142.98,142.96,6.9923]
[1750943448550,6.9922,142.97,142.91,6.51805785]
[1750943450552,20.6418,142.98,142.91,6.51805785]
[1750943451058,13.65,142.98,142.95,6.9927]
[1750943451551,13.65,142.98,142.91,6.51805785]
[1750943451854,13.65,142.98,142.9,6.51805785]
[1750943452950,6.9928,142.96,142.93,6.9936]
[1750943453352,11.4696403,142.97,142.94,6.9933]
[1750943453656,2.44715081,142.96,142.94,6.9933]
[1750943453861,11.4696403,142.97,142.94,6.9933]
[1750943454158,2.4472354,142.96,142.94,6.9933]
[1750943454359,11.4696403,142.97,142.94,6.9933]
[1750943454659,2.44726496,142.96,142.94,6.9933]
[1750943454850,11.4878441,142.97,142.94,6.9933]
[1750943455053,2.44726496,142.96,142.94,6.9933]
[1750943455261,11.4878441,142.97,142.94,6.9933]
[1750943455459,2.44729823,142.96,142.94,6.9933]
[1750943455660,11.4878441,142.97,142.94,6.9933]
[1750943455960,2.44733189,142.96,142.94,6.9933]
[1750943456162,11.4878441,142.97,142.94,6.9933]
[1750943456359,2.4477953,142.96,142.94,6.9933]
[1750943456559,11.4878441,142.97,142.94,6.9933]
[1750943456760,2.44067012,142.96,142.94,6.9933]
[1750943457058,6.9925,142.96,142.93,6.9937]
[1750943458160,9.4326901,142.95,142.93,6.9937]
[1750943458360,35.78,142.95,142.92,6.9942]
[1750943458759,42.7733,142.95,142.92,6.9942]
[1750943458959,6.93024302,142.94,142.92,6.9942]
[1750943459265,19.43950835,142.93,142.92,6.9942]
[1750943460263,17.0,142.93,142.92,6.9942]
[1750943467175,17.0,142.93,142.89,42.29805785]
[1750943467176,19.44011388,142.93,142.91,6.9945]
[1750943467364,17.0,142.93,142.91,6.9945]
[1750943467664,9.43486104,142.92,142.9,6.9952]
[1750943467966,6.9947,142.92,142.9,6.9952]
[1750943468165,23.9942,142.93,142.9,6.9952]
[1750943468368,2.44018519,142.92,142.9,6.9952]
[1750943468568,23.9942,142.93,142.9,6.9952]
[1750943468769,2.44018519,142.92,142.9,6.9952]
[1750943468969,2.44018519,142.92,142.89,6.9957]
[1750943468970,6.9947,142.92,142.89,6.9957]
[1750943469172,2.43970959,142.91,142.89,6.9957]
[1750943469367,6.9947,142.92,142.89,6.9957]
[1750943469671,2.43982549,142.91,142.89,6.9957]
[1750943469968,6.9951,142.91,142.88,6.9962]
[1750943470169,6.9951,142.91,142.86,42.29805785]
[1750943470368,6.9957,142.9,142.86,42.29805785]
[1750943470568,35.78,142.91,142.85,6.51805785]
[1750943470770,38.21970395,142.9,142.85,6.51805785]
[1750943470967,38.21377822,142.89,142.85,6.51805785]
[1750943471164,42.7762,142.89,142.86,6.9971]
[1750943471566,35.78,142.89,142.86,6.9971]
[1750943471768,16.57,142.88,142.87,6.9966]
[1750943472170,16.57,142.88,142.84,6.51805785]
[1750943472966,2.43218373,142.87,142.83,6.51805785]
[1750943473169,21.04075053,142.88,142.83,6.51805785]
[1750943473373,2.43080771,142.87,142.83,13.51655785]
[1750943473580,25.75285053,142.88,142.83,13.51655785]
[1750943473781,2.43080036,142.87,142.82,6.51805785]
[1750943473972,6.9971,142.87,142.84,6.9981]
[1750943474572,6.9975,142.86,142.83,6.9988]
[1750943475276,6.9972,142.87,142.84,6.9983]
[1750943475674,6.9972,142.87,142.81,6.51805785]
[1750943475875,6.9974,142.86,142.83,6.9986]
[1750943476380,35.62,142.85,142.81,6.51805785]
[1750943476580,35.62,142.85,142.79,6.51805785]
[1750943476772,35.62,142.85,142.78,6.51805785]
[1750943477374,12.19627707,142.84,142.81,6.9996]
[1750943477579,6.9986,142.84,142.81,6.9996]
[1750943477779,6.9986,142.84,142.8,7.0001]
[1750943478283,6.9989,142.83,142.8,7.0001]
[1750943478670,5.19376997,142.84,142.77,184.39112408]
[1750943478987,12.19246997,142.84,142.77,184.39112408]
[1750943479168,40.81376997,142.85,142.75,8.90565785]
[1750943479477,6.9996,142.82,142.75,2.3876]
[1750943479980,6.9996,142.82,142.79,7.0006]
[1750943480176,35.64,142.81,142.74,17.03989022]
[1750943480375,35.64,142.8,142.74,12.32459022]
[1750943480573,35.64,142.79,142.74,5.80653237]
[1750943480774,35.64,142.78,142.74,5.80653237]
[1750943480980,35.64,142.79,142.74,5.80653237]
[1750943481290,35.64,142.82,142.74,5.80653237]
[1750943481581,35.64,142.83,142.79,7.0005]
[1750943482076,35.64,142.83,142.8,7.0]
[1750943482379,35.64,142.83,142.75,40.1836]
[1750943482569,40.83376997,142.85,142.75,40.1836]
[1750943482774,35.64,142.85,142.84,6.9984]
[1750943483176,5.19376997,142.86,142.85,6.9979]
[1750943483890,5.19376997,142.87,142.85,6.9979]
[1750943484382,42.6364,142.88,142.85,6.9979]
[1750943484686,35.64,142.88,142.8,2.465]
[1750943484983,40.83376997,142.88,142.8,2.465]
[1750943485176,6.9975,142.86,142.83,6.9985]
[1750943485578,5.19376997,142.87,142.8,2.465]
[1750943485878,12.19106997,142.87,142.84,6.9982]
[1750943486080,35.64,142.88,142.8,2.465]
[1750943486281,18.04,142.86,142.8,2.465]
[1750943486683,18.04,142.86,142.84,6.9981]
[1750943487885,25.0375,142.86,142.84,6.9981]
[1750943488274,18.04,142.86,142.8,2.465]
[1750943488588,25.0377,142.86,142.83,6.9986]
[1750943489990,18.04,142.86,142.76,49.6445]
[1750943490291,22.8056,142.86,142.76,49.6445]
[1750943490493,6.9981,142.85,142.82,6.9991]
[1750943490680,35.64,142.84,142.82,6.9991]
[1750943492589,42.6384,142.84,142.81,6.9997]
[1750943493291,35.64,142.84,142.82,6.9993]
[1750943493680,35.64,142.84,142.76,49.6445]
[1750943494191,42.6385,142.84,142.81,6.9996]
[1750943494582,35.64,142.84,142.76,49.6445]
[1750943494891,35.64,142.84,142.81,6.9994]
[1750943495287,18.04,142.86,142.8,35.64]
[1750943495490,18.04,142.86,142.84,6.9981]
[1750943496284,18.04,142.86,142.79,35.64]
[1750943496790,18.04,142.86,142.84,6.9981]
[1750943496992,25.0374,142.86,142.79,35.64]
[1750943497202,18.04,142.86,142.79,35.64]
[1750943497493,35.64,142.85,142.84,6.9981]
[1750943497696,35.64,142.85,142.79,35.64]
[1750943497885,35.64,142.85,142.83,6.9988]
[1750943498583,42.6382,142.85,142.82,6.9992]
[1750943499178,6.9984,142.84,142.82,6.9992]
[1750943499385,40.82922436,142.85,142.76,137.18]
[1750943499789,40.82922436,142.85,142.81,6.9998]
[1750943500089,40.82922436,142.85,142.76,137.18]
[1750943500788,6.9984,142.84,142.76,137.18]
[1750943501395,6.9984,142.84,142.81,6.9995]
[1750943501594,6.9984,142.84,142.76,137.18]
[1750943502392,6.9989,142.83,142.76,137.18]
[1750943502992,6.9997,142.82,142.76,143.67645495]
[1750943503290,35.64,142.81,142.76,137.18]
[1750943503496,42.6401,142.81,142.79,7.0003]
[1750943503798,42.6401,142.81,142.76,137.18]
[1750943503799,35.64,142.81,142.75,42.6133]
[1750943504296,7.0004,142.8,142.75,6.9733]
[1750943504493,40.81422191,142.81,142.75,6.9733]
[1750943504697,35.64,142.81,142.79,7.0007]
[1750943504888,35.64,142.81,142.75,6.9733]
[1750943505284,35.64,142.81,142.8,7.0003]
[1750943513806,38.48800626,142.84,142.82,6.9992]
[1750943513990,7.64636359,142.83,142.82,6.9992]
[1750943515004,7.64636359,142.83,142.77,6.49645495]
[1750943515194,5.19835733,142.82,142.78,6.49645495]
[1750943515398,40.40140115,142.84,142.78,6.49645495]
[1750943515585,7.6975649,142.83,142.82,6.999]
[1750943515993,36.04,142.84,142.79,6.49645495]
[1750943516301,18.04,142.86,142.79,6.49645495]
[1750943516597,5.2485863,142.85,142.84,6.9984]
[1750943517389,18.04,142.86,142.85,6.9979]
[1750943517600,23.29066967,142.86,142.85,6.9979]
[1750943517800,23.29066967,142.86,142.84,6.998]
[1750943518003,18.04,142.86,142.8,49.76845495]
[1750943518193,5.25115867,142.85,142.8,49.76845495]
[1750943518394,5.25115867,142.85,142.84,6.9984]
[1750943519099,5.25115867,142.85,142.83,6.9987]
[1750943519299,5.25115867,142.85,142.79,6.49645495]
[1750943519693,6.9984,142.84,142.81,6.9995]
[1750943520192,6.9984,142.84,142.79,6.49645495]
[1750943520193,6.9984,142.84,142.82,6.9993]
[1750943520396,6.9981,142.85,142.82,6.9993]
[1750943520599,39.14663,142.87,142.82,6.9993]
[1750943520804,6.9984,142.84,142.82,6.9993]
[1750943521008,36.04,142.83,142.8,6.49645495]
[1750943521305,5.27631276,142.82,142.81,6.9997]
[1750943521605,5.27631276,142.82,142.81,13.49615495]
[1750943521902,36.04,142.83,142.82,6.9994]
[1750943522505,36.04,142.83,142.81,13.49605495]
[1750943522805,36.04,142.83,142.8,6.49645495]
[1750943522993,36.04,142.83,142.82,6.9994]
[1750943523301,3.10663,142.87,142.81,42.53645495]
[1750943523507,9.63869907,142.86,142.82,6.9165]
[1750943523697,3.79e-05,142.85,142.82,6.9165]
[1750943524005,3.10663,142.87,142.82,6.9165]
[1750943524208,3e-05,142.87,142.86,6.9974]
[1750943526112,3e-05,142.87,142.85,6.9976]
[1750943526612,3e-05,142.87,142.82,6.9165]
[1750943527504,12.52,142.86,142.84,6.9981]
[1750943528204,12.52,142.86,142.85,6.9979]
[1750943530410,12.52,142.86,142.84,6.9983]
[1750943531010,12.52,142.86,142.85,6.9979]
[1750943531414,12.52,142.86,142.81,6.49645495]
[1750943531603,12.52,142.86,142.84,6.9979]
[1750943533104,19.5174,142.86,142.84,6.9979]
[1750943533504,19.5174,142.86,142.83,6.9986]
[1750943534112,12.52,142.86,142.81,6.49645495]
[1750943534305,12.52,142.86,142.8,6.49645495]
[1750943534504,19.5176,142.86,142.83,6.9985]
[1750943536312,6.998,142.85,142.83,6.9985]
[1750943536520,6.998,142.85,142.82,6.9991]
[1750943536816,16.90476904,142.86,142.82,6.9991]
[1750943537002,16.90476904,142.86,142.8,6.49645495]
[1750943537003,6.9988,142.84,142.8,6.49645495]
[1750943537204,43.0388,142.84,142.81,6.9996]
[1750943537914,6.9989,142.83,142.81,6.9996]
[1750943538109,6.9989,142.83,142.8,7.0001]
[1750943539515,6.9995,142.82,142.8,7.0001]
[1750943539711,6.9995,142.82,142.79,7.0006]
[1750943540314,40.40608544,142.84,142.78,6.49645495]
[1750943540513,5.07214206,142.83,142.78,6.49645495]
[1750943540815,7.0001,142.81,142.78,13.49755495]
[1750943541018,7.0001,142.81,142.78,7.0011]
[1750943541215,7.0001,142.81,142.79,7.0008]
[1750943541910,5.07103985,142.83,142.78,7.0011]
[1750943542117,5.07103985,142.82,142.78,7.0011]
[1750943542311,36.04,142.84,142.78,7.0011]
[1750943542512,5.07065752,142.83,142.78,7.0011]
[1750943542715,5.07065752,142.82,142.78,7.0011]
[1750943542915,7.0002,142.81,142.78,7.0011]
[1750943543121,36.18,142.8,142.79,7.0008]
[1750943545610,43.1795,142.82,142.8,7.0001]
[1750943546516,43.1995,142.82,142.8,7.0001]
[1750943546713,6.9995,142.82,142.8,7.0001]
[1750943546914,43.1995,142.82,142.76,6.49645495]
[1750943547511,6.9995,142.82,142.79,7.0005]
[1750943547709,7.0001,142.81,142.76,6.49645495]
[1750943548025,7.0001,142.81,142.78,7.0012]
[1750943548514,7.0005,142.8,142.78,7.0012]
[1750943549216,7.0005,142.8,142.77,7.0017]
[1750943549516,7.0011,142.79,142.77,7.0017]
[1750943549719,7.0011,142.79,142.76,6.49645495]
[1750943549923,7.0011,142.79,142.75,6.49645495]
[1750943550122,7.0007,142.8,142.77,7.0019]
[1750943550319,38.4639,142.82,142.75,6.49645495]
[1750943550520,5.05461347,142.81,142.74,12.30298732]
[1750943550719,38.4639,142.82,142.74,12.30298732]
[1750943550924,5.05460547,142.81,142.74,12.30298732]
[1750943551126,7.0011,142.79,142.76,7.0021]
[1750943551518,38.4639,142.82,142.74,12.30298732]